fUST/lending_fUST_20260523
["ID","MTS","AMOUNT","RATE_DAILY","PERIOD"]
[422839338,1779505840000,-500.0,8.219e-05,2]
[422839503,1779505841000,-475.59640564,8.219e-05,2]
[422839504,1779505841000,-500.0,8.219e-05,2]
[422839525,1779505841000,-808.86,8.219e-05,2]
[422839498,1779505841000,-500.0,8.219e-05,2]
[422839497,1779505841000,-500.0,8.219e-05,2]
[422839469,1779505841000,-1429.58,8.219e-05,2]
[422839485,1779505841000,-215.935822,8.219e-05,2]
[422839483,1779505841000,-151.0,8.219e-05,2]
[422839479,1779505841000,-734.42,8.219e-05,2]
[422839465,1779505841000,-500.0,8.219e-05,2]
[422839489,1779505841000,-151.0,8.219e-05,2]
[422839487,1779505841000,-500.33521209,8.219e-05,2]
[422839494,1779505841000,-1421.42,8.219e-05,2]
[422839527,1779505841000,-500.0,8.219e-05,2]
[422839491,1779505841000,-151.0,8.219e-05,2]
[422839506,1779505841000,-500.0,8.219e-05,2]
[422839510,1779505841000,-500.0,8.219e-05,2]
[422839508,1779505841000,-4541.34,8.219e-05,2]
[422839511,1779505841000,-4488.97,8.219e-05,2]
[422839513,1779505841000,-500.0,8.219e-05,2]
[422839514,1779505841000,-2066.77,8.219e-05,2]
[422839516,1779505841000,-2252.79,8.219e-05,2]
[422839519,1779505841000,-3848.2,8.219e-05,2]
[422839515,1779505841000,-500.0,8.219e-05,2]
[422839512,1779505841000,-3741.43,8.219e-05,2]
[422839517,1779505841000,-1065.39,8.219e-05,2]
[422839477,1779505841000,-3349.36,8.219e-05,2]
[422839492,1779505841000,-259.388025,8.219e-05,2]
[422839461,1779505841000,-151.0,8.219e-05,2]
[422839409,1779505841000,-500.0,8.219e-05,2]
[422839481,1779505841000,-151.0,8.219e-05,2]
[422839407,1779505841000,-694.14,8.219e-05,2]
[422839414,1779505841000,-151.0,8.219e-05,2]
[422839423,1779505841000,-151.0,8.219e-05,2]
[422839412,1779505841000,-500.0,8.219e-05,2]
[422839421,1779505841000,-151.0,8.219e-05,2]
[422839419,1779505841000,-151.0,8.219e-05,2]
[422839416,1779505841000,-560.93033459,8.219e-05,2]
[422839430,1779505841000,-151.0,8.219e-05,2]
[422839432,1779505841000,-151.0,8.219e-05,2]
[422839427,1779505841000,-151.0,8.219e-05,2]
[422839425,1779505841000,-500.0,8.219e-05,2]
[422839445,1779505841000,-151.0,8.219e-05,2]
[422839447,1779505841000,-151.0,8.219e-05,2]
[422839467,1779505841000,-501.52600079,8.219e-05,2]
[422839434,1779505841000,-221.03761,8.219e-05,2]
[422839442,1779505841000,-151.0,8.219e-05,2]
[422839453,1779505841000,-151.0,8.219e-05,2]
[422839438,1779505841000,-151.0,8.219e-05,2]
[422839451,1779505841000,-151.0,8.219e-05,2]
[422839440,1779505841000,-944.54,8.219e-05,2]
[422839436,1779505841000,-500.0,8.219e-05,2]
[422839457,1779505841000,-151.0,8.219e-05,2]
[422839455,1779505841000,-500.0,8.219e-05,2]
[422839471,1779505841000,-500.0,8.219e-05,2]
[422839473,1779505841000,-500.0,8.219e-05,2]
[422839459,1779505841000,-151.0,8.219e-05,2]
[422839475,1779505841000,-1219.88,8.219e-05,2]
[422839463,1779505841000,-200.117701,8.219e-05,2]
[422839449,1779505841000,-1014.52,8.219e-05,2]
[422839529,1779505841000,-500.0,8.219e-05,2]
[422839501,1779505841000,-3862.87,8.219e-05,2]
[422839522,1779505841000,-500.0,8.219e-05,2]
[422839589,1779505841000,-51271.33,8.219e-05,2]
[422839601,1779505841000,-1019.29623756,8.219e-05,2]
[422839599,1779505841000,-1000.0,8.219e-05,2]
[422839609,1779505841000,-157.16743799,8.219e-05,2]
[422839605,1779505841000,-151.0,8.219e-05,2]
[422839607,1779505841000,-151.0,8.219e-05,2]
[422839625,1779505841000,-180.09501372,8.219e-05,7]
[422839623,1779505841000,-169.58795478,8.219e-05,7]
[422839627,1779505841000,-360.19002745,8.219e-05,7]
[422839613,1779505841000,-391.61730593,8.219e-05,2]
[422839630,1779505841000,-540.28504117,8.219e-05,7]
[422839611,1779505841000,-195.80865296,8.219e-05,2]
[422839615,1779505841000,-587.42595889,8.219e-05,2]
[422839593,1779505841000,-1000.0,8.219e-05,2]
[422839617,1779505841000,-209.56572673,8.219e-05,7]
[422839621,1779505841000,-628.69718018,8.219e-05,7]
[422839632,1779505841000,-194.42589806,8.219e-05,7]
[422839636,1779505841000,-184.18492354,8.219e-05,7]
[422839647,1779505841000,-274.09396765,8.219e-05,7]
[422839638,1779505841000,-185.41871277,8.219e-05,7]
[422839640,1779505841000,-197.40671823,8.219e-05,7]
[422839649,1779505841000,-176.69953753,8.219e-05,7]
[422839651,1779505841000,-353.39907506,8.219e-05,7]
[422839642,1779505841000,-211.46048477,8.219e-05,7]
[422839653,1779505841000,-530.09861258,8.219e-05,7]
[422839646,1779505841000,-287.04616041,8.219e-05,7]
[422839644,1779505841000,-169.23499208,8.219e-05,7]
[422839520,1779505841000,-500.0,8.219e-05,2]
[422839619,1779505841000,-419.13145345,8.219e-05,7]
[422839591,1779505841000,-500.0,8.219e-05,2]
[422839634,1779505841000,-250.2741936,8.219e-05,7]
[422839586,1779505841000,-500.0,8.219e-05,2]
[422839603,1779505841000,-151.0,8.219e-05,2]
[422839533,1779505841000,-4075.33,8.219e-05,2]
[422839531,1779505841000,-500.0,8.219e-05,2]
[422839537,1779505841000,-500.0,8.219e-05,2]
[422839535,1779505841000,-11741.5,8.219e-05,2]
[422839539,1779505841000,-3135.52,8.219e-05,2]
[422839541,1779505841000,-4979.79,8.219e-05,2]
[422839547,1779505841000,-500.0,8.219e-05,2]
[422839545,1779505841000,-8515.68,8.219e-05,2]
[422839549,1779505841000,-593.5,8.219e-05,2]
[422839551,1779505841000,-1802.72,8.219e-05,2]
[422839554,1779505841000,-500.0,8.219e-05,2]
[422839556,1779505841000,-2505.27,8.219e-05,2]
[422839558,1779505841000,-3366.2,8.219e-05,2]
[422839543,1779505841000,-1053.45,8.219e-05,2]
[422839562,1779505841000,-893.87,8.219e-05,2]
[422839597,1779505841000,-1000.0,8.219e-05,2]
[422839560,1779505841000,-151.124015,8.219e-05,2]
[422839595,1779505841000,-1000.0,8.219e-05,2]
[422839585,1779505841000,-2589.66,8.219e-05,2]
[422839583,1779505841000,-827.87,8.219e-05,2]
[422839578,1779505841000,-518.18,8.219e-05,2]
[422839576,1779505841000,-500.0,8.219e-05,2]
[422839580,1779505841000,-1436.6,8.219e-05,2]
[422839574,1779505841000,-208.32884984,8.219e-05,2]
[422839570,1779505841000,-530.15,8.219e-05,2]
[422839572,1779505841000,-500.0,8.219e-05,2]
[422839568,1779505841000,-946.84,8.219e-05,2]
[422839566,1779505841000,-423.39109895,8.219e-05,2]
[422839564,1779505841000,-500.0,8.219e-05,2]
[422839704,1779505842000,-397.55240949,8.275e-05,7]
[422839696,1779505842000,-200.0,8.27e-05,2]
[422839706,1779505842000,-710.99941996,8.275e-05,7]
[422839700,1779505842000,-287.02125886,8.27e-05,2]
[422839708,1779505842000,-204.31407675,8.275e-05,7]
[422839702,1779505842000,-338.71009766,8.275e-05,7]
[422839698,1779505842000,-200.0,8.27e-05,2]
[422839709,1779505842000,-549.80871437,8.275e-05,7]
[422839730,1779505842000,-339.17590955,8.278e-05,7]
[422839713,1779505842000,-267.26108204,8.275e-05,7]
[422839715,1779505842000,-542.49636392,8.276e-05,7]
[422839719,1779505842000,-520.51030606,8.276e-05,7]
[422839717,1779505842000,-626.24967805,8.276e-05,7]
[422839728,1779505842000,-435.73164373,8.276e-05,7]
[422839734,1779505842000,-720.3800549,8.278e-05,7]
[422839695,1779505842000,-463.35563746,8.219e-05,7]
[422839721,1779505842000,-544.84563549,8.276e-05,7]
[422839711,1779505842000,-430.63650905,8.275e-05,7]
[422839693,1779505842000,-231.67781873,8.219e-05,7]
[422839666,1779505842000,-533.24956497,8.219e-05,7]
[422839689,1779505842000,-353.82029477,8.219e-05,7]
[422839732,1779505842000,-388.85179612,8.278e-05,7]
[422839655,1779505842000,-180.0136819,8.219e-05,7]
[422839657,1779505842000,-215.31825452,8.219e-05,7]
[422839659,1779505842000,-169.35504883,8.219e-05,7]
[422839663,1779505842000,-355.49970998,8.219e-05,7]
[422839662,1779505842000,-177.74985499,8.219e-05,7]
[422839668,1779505842000,-272.32655119,8.219e-05,7]
[422839670,1779505842000,-217.8377649,8.219e-05,7]
[422839674,1779505842000,-417.49978536,8.219e-05,7]
[422839672,1779505842000,-208.74989268,8.219e-05,7]
[422839678,1779505842000,-361.66424261,8.219e-05,7]
[422839681,1779505842000,-183.53360601,8.219e-05,7]
[422839676,1779505842000,-173.50343535,8.219e-05,7]
[422839683,1779505842000,-367.06721201,8.219e-05,7]
[422839680,1779505842000,-347.0068707,8.219e-05,7]
[422839685,1779505842000,-158.7839286,8.219e-05,7]
[422839687,1779505842000,-176.91014739,8.219e-05,7]
[422839691,1779505842000,-530.73044216,8.219e-05,7]
[422839724,1779505842000,-394.94449481,8.276e-05,7]
[422839750,1779505842000,-368.36984708,8.28e-05,7]
[422839736,1779505842000,-838.26290691,8.279e-05,7]
[422839777,1779505842000,-323.71617326,8.343e-05,7]
[422839774,1779505842000,-160.738649,8.31e-05,2]
[422839790,1779505842000,-300.0,8.382e-05,2]
[422839775,1779505842000,-500.0,8.326e-05,2]
[422839792,1779505842000,-300.0,8.382e-05,2]
[422839807,1779505842000,-600.0,8.382e-05,2]
[422839805,1779505842000,-300.0,8.382e-05,2]
[422839794,1779505842000,-300.0,8.382e-05,2]
[422839810,1779505842000,-2078.14381653,8.474e-05,2]
[422839809,1779505842000,-160.0,8.45e-05,2]
[422839798,1779505842000,-300.0,8.382e-05,2]
[422839796,1779505842000,-300.0,8.382e-05,2]
[422839799,1779505842000,-300.0,8.382e-05,2]
[422839803,1779505842000,-300.0,8.382e-05,2]
[422839801,1779505842000,-300.0,8.382e-05,2]
[422839832,1779505842000,-795.86527421,8.493e-05,2]
[422839725,1779505842000,-500.71183575,8.276e-05,7]
[422839788,1779505842000,-300.0,8.382e-05,2]
[422839767,1779505842000,-707.64058954,8.29e-05,7]
[422839772,1779505842000,-500.0,8.305e-05,2]
[422839769,1779505842000,-17528.310838,8.3e-05,2]
[422839738,1779505842000,-783.23461186,8.279e-05,2]
[422839743,1779505842000,-167.01715391,8.279e-05,3]
[422839748,1779505842000,-382.80569659,8.28e-05,7]
[422839760,1779505842000,-548.18793531,8.28e-05,7]
[422839764,1779505842000,-312.08779464,8.28e-05,7]
[422839762,1779505842000,-706.79815011,8.28e-05,7]
[422839782,1779505842000,-300.0,8.382e-05,2]
[422839746,1779505842000,-318.81968432,8.279e-05,7]
[422839752,1779505842000,-370.83742553,8.28e-05,7]
[422839829,1779505842000,-101.57504361,8.474e-05,2]
[422839758,1779505842000,-574.09232081,8.28e-05,7]
[422839756,1779505842000,-338.46998417,8.28e-05,7]
[422839766,1779505842000,-317.5678572,8.29e-05,7]
[422839779,1779505842000,-300.0,8.382e-05,2]
[422839781,1779505842000,-300.0,8.382e-05,2]
[422839784,1779505842000,-300.0,8.382e-05,2]
[422839786,1779505842000,-300.0,8.382e-05,2]
[422839754,1779505842000,-422.92096954,8.28e-05,7]
[422839966,1779505843000,-456.0,8.219e-05,2]
[422839959,1779505843000,-403.29280148,8.219e-05,2]
[422840003,1779505844000,-1778.67719852,8.219e-05,2]
[422840005,1779505844000,-917.45632579,8.493e-05,2]
[422840007,1779505844000,-934.38,8.493e-05,2]
[422840009,1779505844000,-309.82610663,8.493e-05,2]
[422840013,1779505844000,-904.2053,8.493e-05,2]
[422840024,1779505844000,-6902.53158964,8.493e-05,2]
[422840016,1779505844000,-500.0,8.493e-05,2]
[422840026,1779505844000,-18723.98438596,8.493e-05,2]
[422840021,1779505844000,-8458.74429462,8.493e-05,2]
[422840014,1779505844000,-623.93,8.493e-05,2]
[422840018,1779505844000,-29541.25570538,8.493e-05,2]
[422840011,1779505844000,-2547.83349337,8.493e-05,2]
[422840057,1779505847000,-281.23221118,8.493e-05,2]
[422840056,1779505847000,-983.04,8.493e-05,2]
[422840054,1779505847000,-582.61,8.493e-05,2]
[422840053,1779505847000,-500.0,8.493e-05,2]
[422840045,1779505847000,-6400.79,8.219e-05,2]
[422840051,1779505847000,-1653.85,8.493e-05,2]
[422840052,1779505847000,-500.0,8.493e-05,2]
[422840050,1779505847000,-500.0,8.493e-05,2]
[422840048,1779505847000,-517.03234564,8.493e-05,2]
[422840049,1779505847000,-500.0,8.493e-05,2]
[422840047,1779505847000,-38000.0,8.493e-05,2]
[422840046,1779505847000,-13361.53923225,8.493e-05,2]
[422840055,1779505847000,-1789.17,8.493e-05,2]
[422840100,1779506789000,155.42900553,0.00013071,120]
[422840128,1779506947000,-346.74347745,6.765e-05,2]
[422840130,1779506947000,-446.22077929,7.103e-05,2]
[422840129,1779506947000,-400.80074664,6.934e-05,2]
[422840148,1779507032000,-300.0,7.908e-05,2]
[422840154,1779507032000,-300.0,7.909e-05,2]
[422840150,1779507032000,-300.0,7.909e-05,2]
[422840149,1779507032000,-300.0,7.909e-05,2]
[422840151,1779507032000,-300.0,7.909e-05,2]
[422840144,1779507032000,-160.0,7.749e-05,2]
[422840142,1779507032000,-766.63845589,7.748e-05,2]
[422840145,1779507032000,-160.738649,7.751e-05,2]
[422840140,1779507032000,-1476.0,7.74e-05,2]
[422840139,1779507032000,-53.77922071,7.103e-05,2]
[422840141,1779507032000,-160.0,7.748e-05,2]
[422840161,1779507032000,-300.0,7.909e-05,2]
[422840143,1779507032000,-161.73153808,7.749e-05,2]
[422840155,1779507032000,-300.0,7.909e-05,2]
[422840165,1779507032000,-456.6596809,8.005e-05,2]
[422840159,1779507032000,-300.0,7.909e-05,2]
[422840157,1779507032000,-300.0,7.909e-05,2]
[422840167,1779507032000,-2645.26304615,8.119e-05,2]
[422840162,1779507032000,-300.0,7.909e-05,2]
[422840163,1779507032000,-300.0,7.909e-05,2]
[422840168,1779507032000,-405.89418017,8.119e-05,2]
[422840164,1779507032000,-386.8642707,8.005e-05,2]
[422840166,1779507032000,-262.27555465,8.119e-05,2]
[422840156,1779507032000,-300.0,7.909e-05,2]
[422840153,1779507032000,-300.0,7.909e-05,2]
[422840152,1779507032000,-300.0,7.909e-05,2]
[422840147,1779507032000,-500.0,7.897e-05,2]
[422840158,1779507032000,-300.0,7.909e-05,2]
[422840160,1779507032000,-300.0,7.909e-05,2]
[422840146,1779507032000,-327.86679031,7.8e-05,2]
[422840776,1779507044000,-741.48,8.119e-05,2]
[422840802,1779507047000,-500.0,8.218e-05,2]
[422840804,1779507047000,-215.79221098,8.218e-05,2]
[422840805,1779507047000,-500.0,8.219e-05,2]
[422840806,1779507047000,-500.0,8.219e-05,2]
[422840811,1779507047000,-500.0,8.219e-05,2]
[422840807,1779507047000,-500.0,8.219e-05,2]
[422840809,1779507047000,-537.22,8.219e-05,2]
[422840810,1779507047000,-500.0,8.219e-05,2]
[422840801,1779507047000,-500.0,8.218e-05,2]
[422840808,1779507047000,-500.0,8.219e-05,2]
[422840795,1779507047000,-185.0,8.217e-05,2]
[422840791,1779507047000,-258.74102871,8.21e-05,2]
[422840797,1779507047000,-212.82886272,8.218e-05,2]
[422840799,1779507047000,-500.0,8.218e-05,2]
[422840796,1779507047000,-443.0,8.217e-05,2]
[422840798,1779507047000,-567.0,8.218e-05,2]
[422840794,1779507047000,-648.0,8.217e-05,2]
[422840793,1779507047000,-2204.0,8.217e-05,2]
[422840812,1779507047000,-500.0,8.219e-05,2]
[422840792,1779507047000,-1413.0,8.217e-05,2]
[422840790,1779507047000,-6169.40738844,8.119e-05,2]
[422840789,1779507047000,-1865.79998992,8.119e-05,2]
[422840800,1779507047000,-500.0,8.218e-05,2]
[422840815,1779507047000,-500.0,8.219e-05,2]
[422840803,1779507047000,-500.0,8.218e-05,2]
[422840813,1779507047000,-500.0,8.219e-05,2]
[422840814,1779507047000,-500.0,8.219e-05,2]
[422840836,1779507047000,-500.0,8.219e-05,2]
[422840839,1779507047000,-1583.42,8.219e-05,2]
[422840838,1779507047000,-500.0,8.219e-05,2]
[422840835,1779507047000,-500.0,8.219e-05,2]
[422840834,1779507047000,-500.0,8.219e-05,2]
[422840833,1779507047000,-500.0,8.219e-05,2]
[422840832,1779507047000,-895.78,8.219e-05,2]
[422840830,1779507047000,-500.0,8.219e-05,2]
[422840831,1779507047000,-500.0,8.219e-05,2]
[422840827,1779507047000,-627.66,8.219e-05,2]
[422840828,1779507047000,-500.0,8.219e-05,2]
[422840837,1779507047000,-500.0,8.219e-05,2]
[422840818,1779507047000,-500.0,8.219e-05,2]
[422840826,1779507047000,-500.0,8.219e-05,2]
[422840825,1779507047000,-500.0,8.219e-05,2]
[422840823,1779507047000,-500.0,8.219e-05,2]
[422840824,1779507047000,-500.0,8.219e-05,2]
[422840822,1779507047000,-229.00984794,8.219e-05,2]
[422840820,1779507047000,-500.0,8.219e-05,2]
[422840821,1779507047000,-732.63,8.219e-05,2]
[422840819,1779507047000,-758.07,8.219e-05,2]
[422840817,1779507047000,-1248.16,8.219e-05,2]
[422840816,1779507047000,-500.0,8.219e-05,2]
[422840829,1779507047000,-377.92439818,8.219e-05,2]
[422840861,1779507048000,-500.0,8.219e-05,2]
[422840863,1779507048000,-500.0,8.219e-05,2]
[422840877,1779507048000,-706.37,8.219e-05,2]
[422840862,1779507048000,-688.22,8.219e-05,2]
[422840859,1779507048000,-500.0,8.219e-05,2]
[422840867,1779507048000,-646.28630991,8.219e-05,2]
[422840866,1779507048000,-500.0,8.219e-05,2]
[422840865,1779507048000,-500.0,8.219e-05,2]
[422840864,1779507048000,-500.0,8.219e-05,2]
[422840873,1779507048000,-500.0,8.219e-05,2]
[422840868,1779507048000,-500.0,8.219e-05,2]
[422840870,1779507048000,-568.17,8.219e-05,2]
[422840871,1779507048000,-500.0,8.219e-05,2]
[422840872,1779507048000,-333.05965246,8.219e-05,2]
[422840875,1779507048000,-500.0,8.219e-05,2]
[422840874,1779507048000,-500.0,8.219e-05,2]
[422840876,1779507048000,-500.0,8.219e-05,2]
[422840869,1779507048000,-500.0,8.219e-05,2]
[422840860,1779507048000,-1564.21,8.219e-05,2]
[422840848,1779507048000,-500.0,8.219e-05,2]
[422840855,1779507048000,-500.0,8.219e-05,2]
[422840878,1779507048000,-500.0,8.219e-05,2]
[422840840,1779507048000,-1148.49,8.219e-05,2]
[422840841,1779507048000,-501.54805465,8.219e-05,2]
[422840843,1779507048000,-563.93,8.219e-05,2]
[422840842,1779507048000,-584.48667769,8.219e-05,2]
[422840844,1779507048000,-886.99,8.219e-05,2]
[422840846,1779507048000,-500.0,8.219e-05,2]
[422840845,1779507048000,-500.0,8.219e-05,2]
[422840850,1779507048000,-546.25,8.219e-05,2]
[422840847,1779507048000,-1262.82,8.219e-05,2]
[422840852,1779507048000,-808.22,8.219e-05,2]
[422840849,1779507048000,-500.0,8.219e-05,2]
[422840851,1779507048000,-500.0,8.219e-05,2]
[422840853,1779507048000,-500.0,8.219e-05,2]
[422840854,1779507048000,-2137.9,8.219e-05,2]
[422840856,1779507048000,-552.96,8.219e-05,2]
[422840857,1779507048000,-500.0,8.219e-05,2]
[422840858,1779507048000,-523.12661224,8.219e-05,2]
[422840881,1779507048000,-500.0,8.219e-05,2]
[422840900,1779507048000,-742.95,8.219e-05,2]
[422840883,1779507048000,-1040.15,8.219e-05,2]
[422840906,1779507048000,-3903.29,8.219e-05,2]
[422840904,1779507048000,-1000.0,8.219e-05,2]
[422840907,1779507048000,-500.0,8.219e-05,2]
[422840905,1779507048000,-500.0,8.219e-05,2]
[422840909,1779507048000,-500.0,8.219e-05,2]
[422840908,1779507048000,-599.05,8.219e-05,2]
[422840910,1779507048000,-500.0,8.219e-05,2]
[422840912,1779507048000,-500.0,8.219e-05,2]
[422840880,1779507048000,-500.0,8.219e-05,2]
[422840915,1779507048000,-665.22,8.219e-05,2]
[422840911,1779507048000,-502.53,8.219e-05,2]
[422840917,1779507048000,-500.0,8.219e-05,2]
[422840913,1779507048000,-1250.66,8.219e-05,2]
[422840916,1779507048000,-500.0,8.219e-05,2]
[422840920,1779507048000,-3554.19800202,8.219e-05,2]
[422840918,1779507048000,-151.0,8.219e-05,2]
[422840919,1779507048000,-151.0,8.219e-05,2]
[422840903,1779507048000,-1266.82,8.219e-05,2]
[422840902,1779507048000,-1234.43,8.219e-05,2]
[422840914,1779507048000,-500.0,8.219e-05,2]
[422840901,1779507048000,-500.0,8.219e-05,2]
[422840899,1779507048000,-704.47,8.219e-05,2]
[422840879,1779507048000,-846.22,8.219e-05,2]
[422840882,1779507048000,-500.0,8.219e-05,2]
[422840884,1779507048000,-500.0,8.219e-05,2]
[422840885,1779507048000,-1348.21,8.219e-05,2]
[422840887,1779507048000,-500.0,8.219e-05,2]
[422840888,1779507048000,-500.0,8.219e-05,2]
[422840890,1779507048000,-500.0,8.219e-05,2]
[422840886,1779507048000,-500.0,8.219e-05,2]
[422840892,1779507048000,-737.78,8.219e-05,2]
[422840895,1779507048000,-1994.42,8.219e-05,2]
[422840889,1779507048000,-500.0,8.219e-05,2]
[422840897,1779507048000,-1384.09,8.219e-05,2]
[422840893,1779507048000,-500.0,8.219e-05,2]
[422840894,1779507048000,-500.0,8.219e-05,2]
[422840896,1779507048000,-2213.82,8.219e-05,2]
[422840898,1779507048000,-703.34,8.219e-05,2]
[422840891,1779507048000,-1453.97,8.219e-05,2]
[422840925,1779508051000,-239.0618494,8.004e-05,2]
[422840930,1779508154000,-300.0,6.999e-05,2]
[422840931,1779508154000,-500.0,6.999e-05,2]
[422840932,1779508154000,-500.0,6.999e-05,2]
[422840934,1779508154000,-626.91946416,6.999e-05,2]
[422840933,1779508154000,-500.0,6.999e-05,2]
[422840936,1779508154000,-300.0,7.139e-05,2]
[422840937,1779508154000,-300.0,7.139e-05,2]
[422840935,1779508154000,-67413.30686471,7e-05,2]
[422840947,1779508154000,-284.67929211,7.139e-05,2]
[422840938,1779508154000,-300.0,7.139e-05,2]
[422840941,1779508154000,-300.0,7.139e-05,2]
[422840942,1779508154000,-300.0,7.139e-05,2]
[422840940,1779508154000,-300.0,7.139e-05,2]
[422840944,1779508154000,-300.0,7.139e-05,2]
[422840943,1779508154000,-300.0,7.139e-05,2]
[422840946,1779508154000,-300.0,7.139e-05,2]
[422840945,1779508154000,-300.0,7.139e-05,2]
[422840939,1779508154000,-300.0,7.139e-05,2]
[422840950,1779508163000,-300.0,7.139e-05,2]
[422840949,1779508163000,-15.32070789,7.139e-05,2]
[422840953,1779508163000,-558.36023194,7.139e-05,2]
[422840951,1779508163000,-300.0,7.139e-05,2]
[422840952,1779508163000,-300.0,7.139e-05,2]
[422840955,1779508214000,609.3,0.00017808,120]
[422840989,1779508232000,-165.47474215,7.099e-05,2]
[422840992,1779508232000,-500.0,7.099e-05,2]
[422840988,1779508232000,-300.0,7.099e-05,2]
[422840993,1779508232000,-500.0,7.099e-05,2]
[422840990,1779508232000,-31.52525785,7.099e-05,2]
[422840995,1779508232000,-236.32438491,7.099e-05,2]
[422840994,1779508232000,-401.05454769,7.099e-05,2]
[422840997,1779508232000,-2831.09580955,7.1e-05,2]
[422841002,1779508232000,-697.03980434,7.1e-05,2]
[422840991,1779508232000,-500.0,7.099e-05,2]
[422841017,1779508238000,-811.51114452,7.1e-05,2]
[422841019,1779508239000,-1856.86616958,7.1e-05,2]
[422841018,1779508239000,-27663.98504321,7.1e-05,2]
[422841281,1779508244000,-11254.0,7.1e-05,2]
[422841280,1779508244000,-1164.14458316,7.1e-05,2]
[422841284,1779508245000,-2292.89147835,7.1e-05,2]
[422841287,1779508245000,-272.91211503,7.1e-05,2]
[422841282,1779508245000,-13998.86834645,7.1e-05,2]
[422841283,1779508245000,-760.86230765,7.1e-05,2]
[422841286,1779508245000,-27518.18721161,7.1e-05,2]
[422841285,1779508245000,-3215.89712044,7.1e-05,2]
[422841320,1779508247000,-151.0,8.004e-05,2]
[422841318,1779508247000,-88.163722,8.004e-05,2]
[422841309,1779508247000,-300.0,7.241e-05,2]
[422841314,1779508247000,-300.0,7.241e-05,2]
[422841315,1779508247000,-300.0,7.241e-05,2]
[422841321,1779508247000,-409.12439966,8.057e-05,2]
[422841310,1779508247000,-300.0,7.241e-05,2]
[422841308,1779508247000,-300.0,7.241e-05,2]
[422841304,1779508247000,-300.0,7.241e-05,2]
[422841302,1779508247000,-300.0,7.241e-05,2]
[422841305,1779508247000,-300.0,7.241e-05,2]
[422841303,1779508247000,-300.0,7.241e-05,2]
[422841307,1779508247000,-300.0,7.241e-05,2]
[422841301,1779508247000,-300.0,7.241e-05,2]
[422841300,1779508247000,-41.63976806,7.139e-05,2]
[422841299,1779508247000,-95.81463754,7.1e-05,2]
[422841298,1779508247000,-9844.33149113,7.1e-05,2]
[422841297,1779508247000,-30056.59273744,7.1e-05,2]
[422841316,1779508247000,-420.0,7.809e-05,2]
[422841306,1779508247000,-300.0,7.241e-05,2]
[422841311,1779508247000,-300.0,7.241e-05,2]
[422841319,1779508247000,-455.7393379,8.004e-05,2]
[422841313,1779508247000,-300.0,7.241e-05,2]
[422841339,1779508247000,-281.55535825,8.219e-05,2]
[422841335,1779508247000,-500.0,8.219e-05,2]
[422841336,1779508247000,-500.0,8.219e-05,2]
[422841338,1779508247000,-1913.74,8.219e-05,2]
[422841337,1779508247000,-180.60638501,8.219e-05,2]
[422841334,1779508247000,-500.0,8.219e-05,2]
[422841332,1779508247000,-500.0,8.219e-05,2]
[422841317,1779508247000,-720.0,7.853e-05,2]
[422841333,1779508247000,-500.0,8.219e-05,2]
[422841329,1779508247000,-299.35574354,8.217e-05,2]
[422841331,1779508247000,-500.0,8.219e-05,2]
[422841328,1779508247000,-154.923,8.217e-05,2]
[422841330,1779508247000,-194.455,8.218e-05,2]
[422841340,1779508247000,-3.57206598,8.219e-05,2]
[422841326,1779508247000,-648.0,8.217e-05,2]
[422841325,1779508247000,-2202.0,8.217e-05,2]
[422841324,1779508247000,-766.63845589,8.106e-05,2]
[422841327,1779508247000,-1413.0,8.217e-05,2]
[422841322,1779508247000,-161.73153808,8.106e-05,2]
[422841312,1779508247000,-300.0,7.241e-05,2]
[422841323,1779508247000,-160.0,8.106e-05,2]
[422841342,1779508248000,-500.0,8.219e-05,2]
[422841341,1779508248000,-496.42793402,8.219e-05,2]
[422841343,1779508248000,-707.03,8.219e-05,2]
[422841344,1779508248000,-500.0,8.219e-05,2]
[422841346,1779508248000,-674.03,8.219e-05,2]
[422841348,1779508248000,-1214.04,8.219e-05,2]
[422841345,1779508248000,-711.99,8.219e-05,2]
[422841349,1779508248000,-996.81,8.219e-05,2]
[422841347,1779508248000,-675.12,8.219e-05,2]